[Event "Titled Tuesday Blitz August 08 Early 2023"]
[White "Ruge, Edison"]
[Black "Sreyas Payyappat"]
[WhiteFideId "4401000"]
[BlackFideId "46674969"]
[WhiteElo "2272"]
[BlackElo "2528"]
[Result "0-1"]
[Round "3"]
[TimeControl "180+1"]
[Date "2023.08.08"]
[WhiteClock "0:00:00"]
[BlackClock "0:00:08"]
[Board "182"]

1. e4 {[%clk 0:03:00]}  c6 {[%clk 0:02:58]} 2. d3 {[%clk 0:03:00]}  d5 {[%clk 0:02:59]} 3. Nd2 {[%clk 0:03:00]}  e5 {[%clk 0:02:59]} 4. Ngf3 {[%clk 0:03:00]}  Bd6 {[%clk 0:02:59]} 5. g3 {[%clk 0:03:01]}  Nf6 {[%clk 0:02:58]} 6. Bg2 {[%clk 0:03:01]}  O-O {[%clk 0:02:59]} 7. O-O {[%clk 0:03:01]}  Bg4 {[%clk 0:03:00]} 8. h3 {[%clk 0:03:01]}  Bh5 {[%clk 0:02:58]} 9. Qe2 {[%clk 0:02:58]}  Re8 {[%clk 0:02:58]} 10. Re1 {[%clk 0:02:52]}  Na6 {[%clk 0:02:54]} 11. a3 {[%clk 0:02:41]}  Nc5 {[%clk 0:02:51]} 12. b4 {[%clk 0:02:29]}  Ne6 {[%clk 0:02:49]} 13. Qf1 {[%clk 0:02:18]}  Qc7 {[%clk 0:02:39]} 14. Bb2 {[%clk 0:02:13]}  Rad8 {[%clk 0:02:25]} 15. Rac1 {[%clk 0:02:11]}  d4 {[%clk 0:02:17]} 16. Nc4 {[%clk 0:02:07]}  c5 {[%clk 0:02:08]} 17. b5 {[%clk 0:01:58]}  Bxf3 {[%clk 0:01:55]} 18. Bxf3 {[%clk 0:01:55]}  a6 {[%clk 0:01:55]} 19. b6 {[%clk 0:01:50]}  Qc6 {[%clk 0:01:54]} 20. Rb1 {[%clk 0:01:41]}  Nd7 {[%clk 0:01:44]} 21. Bc1 {[%clk 0:01:38]}  f5 {[%clk 0:01:43]} 22. Nxd6 {[%clk 0:01:26]}  Qxd6 {[%clk 0:01:38]} 23. exf5 {[%clk 0:01:26]}  Nef8 {[%clk 0:01:35]} 24. Bxb7 {[%clk 0:01:24]}  Nxb6 {[%clk 0:01:34]} 25. Bg5 {[%clk 0:01:09]}  Rb8 {[%clk 0:01:31]} 26. Be4 {[%clk 0:01:08]}  Nd5 {[%clk 0:01:23]} 27. Qg2 {[%clk 0:00:49]}  Nc3 {[%clk 0:01:16]} 28. Rxb8 {[%clk 0:00:45]}  Rxb8 {[%clk 0:01:15]} 29. f4 {[%clk 0:00:46]}  Nd7 {[%clk 0:01:07]} 30. fxe5 {[%clk 0:00:44]}  Nxe5 {[%clk 0:01:07]} 31. Bf4 {[%clk 0:00:43]}  Re8 {[%clk 0:00:50]} 32. Qf2 {[%clk 0:00:17]}  c4 {[%clk 0:00:24]} 33. Kg2 {[%clk 0:00:17]}  cxd3 {[%clk 0:00:20]} 34. cxd3 {[%clk 0:00:17]}  Nd5 {[%clk 0:00:19]} 35. Qa2 {[%clk 0:00:15]}  Rd8 {[%clk 0:00:11]} 36. Bxe5 {[%clk 0:00:14]}  Qxe5 {[%clk 0:00:11]} 37. Bxd5+ {[%clk 0:00:14]}  Qxd5+ {[%clk 0:00:12]} 38. Qxd5+ {[%clk 0:00:08]}  Rxd5 {[%clk 0:00:13]} 39. g4 {[%clk 0:00:07]}  Ra5 {[%clk 0:00:12]} 40. Ra1 {[%clk 0:00:07]}  Rc5 {[%clk 0:00:12]} 41. Kf3 {[%clk 0:00:06]}  Re5 {[%clk 0:00:12]} 42. Kf4 {[%clk 0:00:03]}  Re3 {[%clk 0:00:11]} 43. Rd1 {[%clk 0:00:04]}  Kf7 {[%clk 0:00:10]} 44. g5 {[%clk 0:00:03]}  Rxh3 {[%clk 0:00:08]} 45. Ke4 {[%clk 0:00:03]}  Rh4+ {[%clk 0:00:08]} 46. Ke5 {[%clk 0:00:03]}  Rg4 {[%clk 0:00:08]} 47. Rb1 {[%clk 0:00:02]}  Rxg5 {[%clk 0:00:08]} 48. Rb7+ {[%clk 0:00:02]}  Ke8 {[%clk 0:00:08]} 49. Ke6 {[%clk 0:00:03]}  Kd8 {[%clk 0:00:08]} 50. Rd7+ {[%clk 0:00:02]}  Kc8 {[%clk 0:00:08]} 51. Ra7 {[%clk 0:00:01]}  h5 {[%clk 0:00:08]} 52. Rxa6 {[%clk 0:00:00]}  h4 {[%clk 0:00:08]} 0-1


[Site "https://www.chess.com"]

[Event "Titled Tuesday Blitz August 08 Early 2023"]
[White "Pinero Rodriguez, Carlos Jose"]
[Black "Samaganova, Aleksandra"]
[WhiteFideId "3901726"]
[BlackFideId "13800221"]
[WhiteElo "2527"]
[BlackElo "2238"]
[Result "1-0"]
[Round "3"]
[TimeControl "180+1"]
[Date "2023.08.08"]
[WhiteClock "0:01:16"]
[BlackClock "0:00:02"]
[Board "183"]

1. e4 {[%clk 0:03:00]}  c5 {[%clk 0:02:56]} 2. Nf3 {[%clk 0:02:59]}  e6 {[%clk 0:02:55]} 3. d4 {[%clk 0:02:58]}  cxd4 {[%clk 0:02:50]} 4. Nxd4 {[%clk 0:02:59]}  a6 {[%clk 0:02:49]} 5. Bd3 {[%clk 0:02:57]}  Qc7 {[%clk 0:02:48]} 6. Qe2 {[%clk 0:02:57]}  Nc6 {[%clk 0:02:44]} 7. Nb3 {[%clk 0:02:52]}  Nf6 {[%clk 0:02:42]} 8. c4 {[%clk 0:02:52]}  Be7 {[%clk 0:02:35]} 9. Nc3 {[%clk 0:02:52]}  O-O {[%clk 0:02:35]} 10. O-O {[%clk 0:02:50]}  Ne5 {[%clk 0:02:32]} 11. h3 {[%clk 0:02:40]}  d6 {[%clk 0:02:21]} 12. Be3 {[%clk 0:02:32]}  Bd7 {[%clk 0:02:13]} 13. Rac1 {[%clk 0:02:32]}  Rac8 {[%clk 0:02:02]} 14. Rfd1 {[%clk 0:02:17]}  Qb8 {[%clk 0:01:52]} 15. Nd2 {[%clk 0:02:17]}  Nxd3 {[%clk 0:01:45]} 16. Qxd3 {[%clk 0:02:17]}  b5 {[%clk 0:01:45]} 17. cxb5 {[%clk 0:02:17]}  axb5 {[%clk 0:01:45]} 18. b4 {[%clk 0:02:15]}  h6 {[%clk 0:01:31]} 19. a3 {[%clk 0:02:14]}  Qb7 {[%clk 0:01:25]} 20. f3 {[%clk 0:02:06]}  Ra8 {[%clk 0:01:22]} 21. Ncb1 {[%clk 0:02:00]}  Rfc8 {[%clk 0:01:21]} 22. Nb3 {[%clk 0:01:58]}  Bc6 {[%clk 0:00:59]} 23. Na5 {[%clk 0:01:56]}  Rxa5 {[%clk 0:00:53]} 24. bxa5 {[%clk 0:01:57]}  d5 {[%clk 0:00:47]} 25. e5 {[%clk 0:01:49]}  Nd7 {[%clk 0:00:46]} 26. Bd4 {[%clk 0:01:48]}  b4 {[%clk 0:00:43]} 27. axb4 {[%clk 0:01:46]}  Bxb4 {[%clk 0:00:41]} 28. a6 {[%clk 0:01:46]}  Qa8 {[%clk 0:00:39]} 29. a7 {[%clk 0:01:43]}  Ba4 {[%clk 0:00:31]} 30. Rxc8+ {[%clk 0:01:41]}  Qxc8 {[%clk 0:00:32]} 31. Rf1 {[%clk 0:01:29]}  g6 {[%clk 0:00:19]} 32. Nc3 {[%clk 0:01:27]}  Bc6 {[%clk 0:00:17]} 33. Rb1 {[%clk 0:01:27]}  Ba5 {[%clk 0:00:16]} 34. Nb5 {[%clk 0:01:24]}  Kg7 {[%clk 0:00:10]} 35. Nd6 {[%clk 0:01:23]}  Qd8 {[%clk 0:00:10]} 36. Qa6 {[%clk 0:01:18]}  Ba8 {[%clk 0:00:09]} 37. Qc8 {[%clk 0:01:17]}  g5 {[%clk 0:00:04]} 38. Qxd8 {[%clk 0:01:16]}  Bxd8 {[%clk 0:00:05]} 39. Rb8 {[%clk 0:01:16]}  Bc7 {[%clk 0:00:02]} 40. Rxa8 {[%clk 0:01:16]} 1-0


[Site "https://www.chess.com"]

[Event "Titled Tuesday Blitz August 08 Early 2023"]
[White "Vaglio Munoz, Jaime"]
[Black "Berezin, Viktor"]
[WhiteFideId "6500145"]
[BlackFideId "14107872"]
[WhiteElo "2238"]
[BlackElo "2527"]
[Result "1/2-1/2"]
[Round "3"]
[TimeControl "180+1"]
[Date "2023.08.08"]
[WhiteClock "0:00:07"]
[BlackClock "0:00:19"]
[Board "185"]

1. Nf3 {[%clk 0:03:00]}  Nf6 {[%clk 0:02:55]} 2. c4 {[%clk 0:03:00]}  g6 {[%clk 0:02:52]} 3. b3 {[%clk 0:03:00]}  Bg7 {[%clk 0:02:52]} 4. Bb2 {[%clk 0:03:01]}  O-O {[%clk 0:02:53]} 5. g3 {[%clk 0:03:01]}  d5 {[%clk 0:02:51]} 6. Bg2 {[%clk 0:02:59]}  c6 {[%clk 0:02:50]} 7. O-O {[%clk 0:02:58]}  Bf5 {[%clk 0:02:50]} 8. d3 {[%clk 0:02:58]}  a5 {[%clk 0:02:46]} 9. Re1 {[%clk 0:02:57]}  a4 {[%clk 0:02:46]} 10. b4 {[%clk 0:02:37]}  dxc4 {[%clk 0:02:44]} 11. dxc4 {[%clk 0:02:36]}  Ne4 {[%clk 0:02:33]} 12. Bxg7 {[%clk 0:02:35]}  Kxg7 {[%clk 0:02:31]} 13. Qd4+ {[%clk 0:02:34]}  Kg8 {[%clk 0:02:11]} 14. Rd1 {[%clk 0:02:30]}  Qc7 {[%clk 0:02:05]} 15. Nh4 {[%clk 0:02:17]}  Nd6 {[%clk 0:02:06]} 16. Nxf5 {[%clk 0:02:14]}  Nxf5 {[%clk 0:02:06]} 17. Qf4 {[%clk 0:02:10]}  Qxf4 {[%clk 0:02:02]} 18. gxf4 {[%clk 0:02:11]}  a3 {[%clk 0:02:03]} 19. Nc3 {[%clk 0:02:09]}  Na6 {[%clk 0:02:01]} 20. Rab1 {[%clk 0:02:09]}  Rfd8 {[%clk 0:02:00]} 21. b5 {[%clk 0:02:07]}  Rxd1+ {[%clk 0:01:53]} 22. Nxd1 {[%clk 0:01:54]}  cxb5 {[%clk 0:01:51]} 23. Bxb7 {[%clk 0:01:50]}  Ra7 {[%clk 0:01:49]} 24. Rxb5 {[%clk 0:01:41]}  Nd4 {[%clk 0:01:36]} 25. Bxa6 {[%clk 0:01:37]}  Rxa6 {[%clk 0:01:34]} 26. Rb8+ {[%clk 0:01:35]}  Kg7 {[%clk 0:01:34]} 27. Kf1 {[%clk 0:01:34]}  Ra4 {[%clk 0:01:29]} 28. Ne3 {[%clk 0:01:33]}  Nc6 {[%clk 0:01:21]} 29. Rb1 {[%clk 0:01:12]}  Kf6 {[%clk 0:00:51]} 30. Nd5+ {[%clk 0:01:05]}  Ke6 {[%clk 0:00:52]} 31. Nb6 {[%clk 0:01:05]}  Rb4 {[%clk 0:00:50]} 32. Rxb4 {[%clk 0:00:57]}  Nxb4 {[%clk 0:00:51]} 33. c5 {[%clk 0:00:57]}  Nxa2 {[%clk 0:00:44]} 34. Nc4 {[%clk 0:00:57]}  Kd5 {[%clk 0:00:40]} 35. c6 {[%clk 0:00:53]}  Kxc6 {[%clk 0:00:33]} 36. Nxa3 {[%clk 0:00:53]}  Nc3 {[%clk 0:00:30]} 37. Nc4 {[%clk 0:00:52]}  f6 {[%clk 0:00:29]} 38. Ne3 {[%clk 0:00:43]}  Kc5 {[%clk 0:00:23]} 39. f5 {[%clk 0:00:43]}  Kd4 {[%clk 0:00:22]} 40. fxg6 {[%clk 0:00:42]}  hxg6 {[%clk 0:00:23]} 41. Nc2+ {[%clk 0:00:38]}  Ke4 {[%clk 0:00:23]} 42. f3+ {[%clk 0:00:35]}  Kf4 {[%clk 0:00:23]} 43. Kf2 {[%clk 0:00:34]}  Nd1+ {[%clk 0:00:23]} 44. Ke1 {[%clk 0:00:28]}  Ne3 {[%clk 0:00:23]} 45. Nd4 {[%clk 0:00:28]}  Ke5 {[%clk 0:00:21]} 46. Nc6+ {[%clk 0:00:27]}  Kd6 {[%clk 0:00:21]} 47. Nd4 {[%clk 0:00:27]}  e5 {[%clk 0:00:22]} 48. Nb3 {[%clk 0:00:26]}  Kd5 {[%clk 0:00:21]} 49. Kf2 {[%clk 0:00:26]}  Nd1+ {[%clk 0:00:20]} 50. Ke1 {[%clk 0:00:26]}  Ne3 {[%clk 0:00:20]} 51. Kf2 {[%clk 0:00:26]}  Nc2 {[%clk 0:00:20]} 52. Nd2 {[%clk 0:00:24]}  f5 {[%clk 0:00:20]} 53. e4+ {[%clk 0:00:24]}  Ke6 {[%clk 0:00:20]} 54. h4 {[%clk 0:00:22]}  Kf6 {[%clk 0:00:20]} 55. Kg3 {[%clk 0:00:18]}  f4+ {[%clk 0:00:20]} 56. Kg4 {[%clk 0:00:18]}  Ne3+ {[%clk 0:00:21]} 57. Kh3 {[%clk 0:00:17]}  Kg7 {[%clk 0:00:21]} 58. Nb3 {[%clk 0:00:14]}  Kh6 {[%clk 0:00:21]} 59. Nc5 {[%clk 0:00:14]}  Kh5 {[%clk 0:00:20]} 60. Nd7 {[%clk 0:00:13]}  Nc4 {[%clk 0:00:20]} 61. Nf6+ {[%clk 0:00:13]}  Kh6 {[%clk 0:00:20]} 62. Ng4+ {[%clk 0:00:13]}  Kg7 {[%clk 0:00:21]} 63. Nf2 {[%clk 0:00:12]}  Nd2 {[%clk 0:00:20]} 64. Kg4 {[%clk 0:00:11]}  Nf1 {[%clk 0:00:19]} 65. Kh3 {[%clk 0:00:09]}  Nh2 {[%clk 0:00:19]} 66. Kg2 {[%clk 0:00:09]}  Nxf3 {[%clk 0:00:18]} 67. Kxf3 {[%clk 0:00:09]}  Kh6 {[%clk 0:00:18]} 68. Kg4 {[%clk 0:00:07]}  Kh7 {[%clk 0:00:18]} 69. Nh3 {[%clk 0:00:07]}  Kh6 {[%clk 0:00:18]} 70. Ng5 {[%clk 0:00:07]}  Kg7 {[%clk 0:00:18]} 71. Nf3 {[%clk 0:00:07]}  Kf6 {[%clk 0:00:18]} 72. Ng5 {[%clk 0:00:07]}  Kg7 {[%clk 0:00:18]} 73. Ne6+ {[%clk 0:00:07]}  Kf6 {[%clk 0:00:19]} 74. Ng5 {[%clk 0:00:07]}  Kg7 {[%clk 0:00:19]} 1/2-1/2


[Site "https://www.chess.com"]

[Event "Titled Tuesday Blitz August 08 Early 2023"]
[White "Hrescak, Ivana"]
[Black "Martin Barcelo, Carles"]
[WhiteFideId "14613441"]
[BlackFideId "24561444"]
[WhiteElo "2217"]
[BlackElo "2523"]
[Result "0-1"]
[Round "3"]
[TimeControl "180+1"]
[Date "2023.08.08"]
[WhiteClock "0:00:11"]
[BlackClock "0:00:19"]
[Board "187"]

1. e4 {[%clk 0:03:00]}  Nc6 {[%clk 0:02:55]} 2. Nf3 {[%clk 0:03:00]}  d6 {[%clk 0:02:53]} 3. d4 {[%clk 0:03:00]}  g6 {[%clk 0:02:54]} 4. Be3 {[%clk 0:02:54]}  Bg7 {[%clk 0:02:54]} 5. h3 {[%clk 0:02:49]}  Nf6 {[%clk 0:02:53]} 6. Nc3 {[%clk 0:02:48]}  e5 {[%clk 0:02:53]} 7. Qd2 {[%clk 0:02:48]}  exd4 {[%clk 0:02:48]} 8. Nxd4 {[%clk 0:02:47]}  O-O {[%clk 0:02:49]} 9. O-O-O {[%clk 0:02:47]}  Re8 {[%clk 0:02:49]} 10. Bd3 {[%clk 0:02:34]}  Ne5 {[%clk 0:02:47]} 11. Bh6 {[%clk 0:02:29]}  Bh8 {[%clk 0:02:44]} 12. Rhe1 {[%clk 0:02:24]}  a6 {[%clk 0:02:42]} 13. f4 {[%clk 0:02:20]}  Nxd3+ {[%clk 0:02:42]} 14. Qxd3 {[%clk 0:02:19]}  Nd7 {[%clk 0:02:41]} 15. Nd5 {[%clk 0:01:59]}  c6 {[%clk 0:02:37]} 16. Nc3 {[%clk 0:01:43]}  Nc5 {[%clk 0:02:27]} 17. Qf3 {[%clk 0:01:38]}  Nd7 {[%clk 0:01:57]} 18. g4 {[%clk 0:01:22]}  Qb6 {[%clk 0:01:49]} 19. Nde2 {[%clk 0:01:15]}  Qc5 {[%clk 0:01:43]} 20. Qd3 {[%clk 0:01:11]}  Nf6 {[%clk 0:01:21]} 21. Qxd6 {[%clk 0:01:05]}  Qxd6 {[%clk 0:01:21]} 22. Rxd6 {[%clk 0:01:04]}  Be6 {[%clk 0:01:21]} 23. e5 {[%clk 0:00:54]}  Nd5 {[%clk 0:01:20]} 24. Nxd5 {[%clk 0:00:51]}  Bxd5 {[%clk 0:01:20]} 25. Nd4 {[%clk 0:00:49]}  Rad8 {[%clk 0:01:18]} 26. Rxd8 {[%clk 0:00:48]}  Rxd8 {[%clk 0:01:19]} 27. Nb3 {[%clk 0:00:34]}  Re8 {[%clk 0:01:13]} 28. Kd2 {[%clk 0:00:24]}  b6 {[%clk 0:01:13]} 29. a3 {[%clk 0:00:23]}  a5 {[%clk 0:01:13]} 30. Nd4 {[%clk 0:00:23]}  Rd8 {[%clk 0:01:03]} 31. Ke3 {[%clk 0:00:23]}  f6 {[%clk 0:00:57]} 32. Kf2 {[%clk 0:00:14]}  Re8 {[%clk 0:00:46]} 33. exf6 {[%clk 0:00:11]}  Rxe1 {[%clk 0:00:47]} 34. Kxe1 {[%clk 0:00:11]}  Bxf6 {[%clk 0:00:48]} 35. c3 {[%clk 0:00:11]}  c5 {[%clk 0:00:42]} 36. Nc2 {[%clk 0:00:08]}  b5 {[%clk 0:00:35]} 37. Ne3 {[%clk 0:00:08]}  Be4 {[%clk 0:00:32]} 38. f5 {[%clk 0:00:08]}  Kf7 {[%clk 0:00:28]} 39. fxg6+ {[%clk 0:00:07]}  hxg6 {[%clk 0:00:29]} 40. Bf4 {[%clk 0:00:07]}  Ke6 {[%clk 0:00:28]} 41. Bc7 {[%clk 0:00:07]}  a4 {[%clk 0:00:28]} 42. Kf2 {[%clk 0:00:05]}  b4 {[%clk 0:00:28]} 43. axb4 {[%clk 0:00:04]}  cxb4 {[%clk 0:00:28]} 44. cxb4 {[%clk 0:00:04]}  Bxb2 {[%clk 0:00:29]} 45. Nc4 {[%clk 0:00:05]}  Bd4+ {[%clk 0:00:28]} 46. Ke2 {[%clk 0:00:04]}  Kd5 {[%clk 0:00:27]} 47. Nb6+ {[%clk 0:00:02]}  Kc6 {[%clk 0:00:26]} 48. Bd8 {[%clk 0:00:02]}  Bxb6 {[%clk 0:00:25]} 49. Bxb6 {[%clk 0:00:03]}  Kxb6 {[%clk 0:00:26]} 50. Ke3 {[%clk 0:00:03]}  a3 {[%clk 0:00:23]} 51. Kxe4 {[%clk 0:00:03]}  a2 {[%clk 0:00:24]} 52. Kf4 {[%clk 0:00:04]}  a1=Q {[%clk 0:00:24]} 53. Kg5 {[%clk 0:00:05]}  Qb1 {[%clk 0:00:20]} 54. h4 {[%clk 0:00:04]}  Kb5 {[%clk 0:00:20]} 55. h5 {[%clk 0:00:05]}  gxh5 {[%clk 0:00:21]} 56. Kxh5 {[%clk 0:00:05]}  Qh1+ {[%clk 0:00:20]} 57. Kg6 {[%clk 0:00:05]}  Qe4+ {[%clk 0:00:19]} 58. Kh5 {[%clk 0:00:05]}  Qf3 {[%clk 0:00:19]} 59. Kg5 {[%clk 0:00:04]}  Kxb4 {[%clk 0:00:19]} 60. Kh5 {[%clk 0:00:05]}  Qh3+ {[%clk 0:00:19]} 61. Kg5 {[%clk 0:00:05]}  Kc5 {[%clk 0:00:19]} 62. Kf5 {[%clk 0:00:06]}  Kd6 {[%clk 0:00:20]} 63. Kf4 {[%clk 0:00:06]}  Ke6 {[%clk 0:00:20]} 64. g5 {[%clk 0:00:07]}  Qf5+ {[%clk 0:00:19]} 65. Ke3 {[%clk 0:00:06]}  Qxg5+ {[%clk 0:00:20]} 66. Kd3 {[%clk 0:00:07]}  Qe5 {[%clk 0:00:20]} 67. Kc4 {[%clk 0:00:07]}  Qd5+ {[%clk 0:00:20]} 68. Kc3 {[%clk 0:00:07]}  Kd6 {[%clk 0:00:21]} 69. Kc2 {[%clk 0:00:08]}  Kc5 {[%clk 0:00:22]} 70. Kb2 {[%clk 0:00:09]}  Kb4 {[%clk 0:00:22]} 71. Kc2 {[%clk 0:00:09]}  Qd4 {[%clk 0:00:23]} 72. Kc1 {[%clk 0:00:09]}  Qf2 {[%clk 0:00:23]} 73. Kb1 {[%clk 0:00:10]}  Kc3 {[%clk 0:00:23]} 74. Ka1 {[%clk 0:00:11]}  Qe2 {[%clk 0:00:21]} 75. Kb1 {[%clk 0:00:12]}  Qd2 {[%clk 0:00:21]} 76. Ka1 {[%clk 0:00:12]}  Qc1+ {[%clk 0:00:20]} 77. Ka2 {[%clk 0:00:11]}  Qc2+ {[%clk 0:00:21]} 78. Ka1 {[%clk 0:00:11]}  Qb2# {[%clk 0:00:19]} 0-1


[Site "https://www.chess.com"]

[Event "Titled Tuesday Blitz August 08 Early 2023"]
[White "Falbo, Sandro"]
[Black "Sidletskyi, Ivan"]
[WhiteFideId "810444"]
[BlackFideId "14156024"]
[WhiteElo "2181"]
[BlackElo "2520"]
[Result "0-1"]
[Round "3"]
[TimeControl "180+1"]
[Date "2023.08.08"]
[WhiteClock "0:00:00"]
[BlackClock "0:00:11"]
[Board "190"]

1. c4 {[%clk 0:03:00]}  Nf6 {[%clk 0:02:58]} 2. Nc3 {[%clk 0:02:58]}  e6 {[%clk 0:02:56]} 3. e4 {[%clk 0:02:57]}  d5 {[%clk 0:02:56]} 4. e5 {[%clk 0:02:57]}  d4 {[%clk 0:02:56]} 5. exf6 {[%clk 0:02:56]}  dxc3 {[%clk 0:02:56]} 6. bxc3 {[%clk 0:02:55]}  Qxf6 {[%clk 0:02:55]} 7. d4 {[%clk 0:02:56]}  b6 {[%clk 0:02:55]} 8. Nf3 {[%clk 0:02:54]}  Bb7 {[%clk 0:02:55]} 9. Be2 {[%clk 0:02:44]}  Nd7 {[%clk 0:02:47]} 10. Bg5 {[%clk 0:02:44]}  Qf5 {[%clk 0:02:38]} 11. O-O {[%clk 0:02:32]}  Bd6 {[%clk 0:02:32]} 12. Qd2 {[%clk 0:02:09]}  h6 {[%clk 0:02:11]} 13. Bh4 {[%clk 0:02:06]}  O-O {[%clk 0:01:52]} 14. Rab1 {[%clk 0:01:28]}  Bc6 {[%clk 0:01:36]} 15. Bg3 {[%clk 0:01:25]}  Bxg3 {[%clk 0:01:33]} 16. fxg3 {[%clk 0:01:25]}  Qa5 {[%clk 0:01:28]} 17. Rf2 {[%clk 0:01:10]}  Rad8 {[%clk 0:01:21]} 18. Bd3 {[%clk 0:01:05]}  Nf6 {[%clk 0:00:33]} 19. Ne5 {[%clk 0:00:53]}  Be4 {[%clk 0:00:32]} 20. Rxf6 {[%clk 0:00:40]}  gxf6 {[%clk 0:00:29]} 21. Ng4 {[%clk 0:00:39]}  Bxd3 {[%clk 0:00:19]} 22. Qxh6 {[%clk 0:00:32]}  Qg5 {[%clk 0:00:19]} 23. Nxf6+ {[%clk 0:00:32]}  Qxf6 {[%clk 0:00:20]} 24. Qxf6 {[%clk 0:00:32]}  Bxb1 {[%clk 0:00:20]} 25. Qg5+ {[%clk 0:00:31]}  Bg6 {[%clk 0:00:21]} 26. h4 {[%clk 0:00:30]}  Kh7 {[%clk 0:00:20]} 27. h5 {[%clk 0:00:29]}  Be4 {[%clk 0:00:21]} 28. Qf6 {[%clk 0:00:26]}  Rd7 {[%clk 0:00:19]} 29. g4 {[%clk 0:00:25]}  Rg8 {[%clk 0:00:20]} 30. g5 {[%clk 0:00:23]}  Bf5 {[%clk 0:00:20]} 31. c5 {[%clk 0:00:19]}  bxc5 {[%clk 0:00:20]} 32. Kf2 {[%clk 0:00:17]}  cxd4 {[%clk 0:00:20]} 33. cxd4 {[%clk 0:00:17]}  a5 {[%clk 0:00:21]} 34. Kf3 {[%clk 0:00:15]}  c5 {[%clk 0:00:20]} 35. g4 {[%clk 0:00:15]}  Bc2 {[%clk 0:00:17]} 36. dxc5 {[%clk 0:00:14]}  Rc8 {[%clk 0:00:15]} 37. g6+ {[%clk 0:00:13]}  fxg6 {[%clk 0:00:15]} 38. Qxe6 {[%clk 0:00:12]}  Rf8+ {[%clk 0:00:15]} 39. Kg3 {[%clk 0:00:11]}  Rd3+ {[%clk 0:00:15]} 40. Kh4 {[%clk 0:00:11]}  gxh5 {[%clk 0:00:12]} 41. Qe7+ {[%clk 0:00:11]}  Kg8 {[%clk 0:00:12]} 42. Qe6+ {[%clk 0:00:10]}  Rf7 {[%clk 0:00:13]} 43. Qe8+ {[%clk 0:00:09]}  Kg7 {[%clk 0:00:12]} 44. Qe5+ {[%clk 0:00:09]}  Kf8 {[%clk 0:00:13]} 45. Qb8+ {[%clk 0:00:08]}  Ke7 {[%clk 0:00:13]} 46. Qc7+ {[%clk 0:00:08]}  Ke6 {[%clk 0:00:12]} 47. Qc8+ {[%clk 0:00:07]}  Ke5 {[%clk 0:00:12]} 48. Qe8+ {[%clk 0:00:07]}  Kf6 {[%clk 0:00:12]} 49. Qh8+ {[%clk 0:00:07]}  Ke6 {[%clk 0:00:10]} 50. Qh6+ {[%clk 0:00:06]}  Rf6 {[%clk 0:00:10]} 51. Qh8 {[%clk 0:00:01]}  hxg4 {[%clk 0:00:10]} 52. Qe8+ {[%clk 0:00:00]}  Kf5 {[%clk 0:00:11]} 0-1


[Site "https://www.chess.com"]

[Event "Titled Tuesday Blitz August 08 Early 2023"]
[White "Grigoryan, Meri"]
[Black "reevecanada"]
[WhiteFideId "13300571"]
[WhiteElo "2177"]
[BlackElo "2513"]
[Result "0-1"]
[Round "3"]
[TimeControl "180+1"]
[Date "2023.08.08"]
[WhiteClock "0:00:19"]
[BlackClock "0:01:37"]
[Board "193"]

1. d4 {[%clk 0:03:00]}  d5 {[%clk 0:02:57]} 2. Nf3 {[%clk 0:03:00]}  Nf6 {[%clk 0:02:56]} 3. Bf4 {[%clk 0:03:00]}  e6 {[%clk 0:02:53]} 4. e3 {[%clk 0:02:59]}  Bd6 {[%clk 0:02:54]} 5. Bxd6 {[%clk 0:02:57]}  Qxd6 {[%clk 0:02:53]} 6. Bd3 {[%clk 0:02:57]}  Nbd7 {[%clk 0:02:53]} 7. c3 {[%clk 0:02:54]}  c5 {[%clk 0:02:53]} 8. Nbd2 {[%clk 0:02:53]}  O-O {[%clk 0:02:51]} 9. O-O {[%clk 0:02:53]}  e5 {[%clk 0:02:52]} 10. dxe5 {[%clk 0:02:52]}  Nxe5 {[%clk 0:02:53]} 11. Nxe5 {[%clk 0:02:51]}  Qxe5 {[%clk 0:02:54]} 12. Nf3 {[%clk 0:02:52]}  Qe7 {[%clk 0:02:53]} 13. h3 {[%clk 0:02:49]}  b6 {[%clk 0:02:53]} 14. Re1 {[%clk 0:02:48]}  Bb7 {[%clk 0:02:53]} 15. Qc2 {[%clk 0:02:39]}  Rad8 {[%clk 0:02:50]} 16. Rad1 {[%clk 0:02:39]}  a6 {[%clk 0:02:49]} 17. Nh2 {[%clk 0:02:10]}  b5 {[%clk 0:02:44]} 18. b3 {[%clk 0:02:01]}  Rd6 {[%clk 0:02:35]} 19. c4 {[%clk 0:01:54]}  dxc4 {[%clk 0:02:25]} 20. bxc4 {[%clk 0:01:53]}  b4 {[%clk 0:02:25]} 21. Rd2 {[%clk 0:01:41]}  Rfd8 {[%clk 0:02:21]} 22. Red1 {[%clk 0:01:41]}  g6 {[%clk 0:02:15]} 23. Be2 {[%clk 0:01:36]}  Rxd2 {[%clk 0:02:07]} 24. Rxd2 {[%clk 0:01:37]}  Rxd2 {[%clk 0:02:06]} 25. Qxd2 {[%clk 0:01:38]}  Ne4 {[%clk 0:02:07]} 26. Qb2 {[%clk 0:01:23]}  Nc3 {[%clk 0:02:04]} 27. Bf3 {[%clk 0:01:22]}  Qd7 {[%clk 0:01:46]} 28. Bxb7 {[%clk 0:01:17]}  Qd1+ {[%clk 0:01:40]} 29. Nf1 {[%clk 0:01:16]}  Ne2+ {[%clk 0:01:41]} 30. Kh2 {[%clk 0:01:06]}  Qxf1 {[%clk 0:01:40]} 31. h4 {[%clk 0:01:02]}  Qxf2 {[%clk 0:01:38]} 32. Bc8 {[%clk 0:00:20]}  Qxh4+ {[%clk 0:01:35]} 33. Bh3 {[%clk 0:00:19]}  Qg3+ {[%clk 0:01:35]} 34. Kh1 {[%clk 0:00:19]}  Qe1+ {[%clk 0:01:36]} 35. Kh2 {[%clk 0:00:19]}  Qg1# {[%clk 0:01:37]} 0-1


[Site "https://www.chess.com"]

[Event "Titled Tuesday Blitz August 08 Early 2023"]
[White "Mattheii"]
[Black "Yuruultei Batbaatar"]
[BlackFideId "4905962"]
[WhiteElo "2510"]
[BlackElo "2112"]
[Result "1-0"]
[Round "3"]
[TimeControl "180+1"]
[Date "2023.08.08"]
[WhiteClock "0:00:26"]
[BlackClock "0:00:12"]
[Board "196"]

1. b4 {[%clk 0:03:00]}  Nf6 {[%clk 0:02:55]} 2. Bb2 {[%clk 0:02:59]}  g6 {[%clk 0:02:56]} 3. e3 {[%clk 0:02:55]}  Bg7 {[%clk 0:02:55]} 4. Nf3 {[%clk 0:02:55]}  O-O {[%clk 0:02:54]} 5. c4 {[%clk 0:02:55]}  d6 {[%clk 0:02:44]} 6. Be2 {[%clk 0:02:54]}  e5 {[%clk 0:02:42]} 7. O-O {[%clk 0:02:45]}  Nc6 {[%clk 0:02:37]} 8. b5 {[%clk 0:02:43]}  Ne7 {[%clk 0:02:36]} 9. c5 {[%clk 0:02:16]}  Bg4 {[%clk 0:02:29]} 10. cxd6 {[%clk 0:02:13]}  cxd6 {[%clk 0:02:30]} 11. h3 {[%clk 0:02:10]}  Be6 {[%clk 0:02:19]} 12. d3 {[%clk 0:01:59]}  Rc8 {[%clk 0:02:17]} 13. Nbd2 {[%clk 0:01:55]}  Qd7 {[%clk 0:02:03]} 14. a4 {[%clk 0:01:55]}  Nfd5 {[%clk 0:02:00]} 15. Nc4 {[%clk 0:01:48]}  e4 {[%clk 0:00:52]} 16. dxe4 {[%clk 0:01:29]}  Bxb2 {[%clk 0:00:47]} 17. exd5 {[%clk 0:00:55]}  Bxa1 {[%clk 0:00:42]} 18. dxe6 {[%clk 0:00:55]}  Qxe6 {[%clk 0:00:40]} 19. Qxa1 {[%clk 0:00:31]}  Rxc4 {[%clk 0:00:38]} 20. Bxc4 {[%clk 0:00:32]}  Qxc4 {[%clk 0:00:37]} 21. Rd1 {[%clk 0:00:33]}  d5 {[%clk 0:00:31]} 22. Ne5 {[%clk 0:00:27]}  Qc7 {[%clk 0:00:31]} 23. Ng4 {[%clk 0:00:26]}  f5 {[%clk 0:00:12]} 24. Nh6# {[%clk 0:00:26]} 1-0


[Site "https://www.chess.com"]